bitfinex/quotes_ETHUSD_20250626
["timestamp","ask_amount","ask_price","bid_price","bid_amount"]
[1750957495920,0.2203031,2433.4,2433.3,11.72973656]
[1750957496120,0.2203031,2433.4,2433.3,11.93453656]
[1750957497837,0.2203031,2433.4,2433.3,13.70753656]
[1750957500955,0.2058,2433.7,2433.5,4.13554832]
[1750957501244,0.001,2433.7,2433.6,0.41355483]
[1750957502149,0.001,2433.7,2433.6,8.93955483]
[1750957502355,0.001,2433.7,2433.6,0.41355483]
[1750957502556,0.001,2433.7,2433.6,8.524]
[1750957502859,0.001,2433.7,2433.5,4.13554832]
[1750957502860,0.2058,2433.7,2433.5,4.13554832]
[1750957503067,0.7505,2433.6,2432.8,0.8088]
[1750957503238,0.2048,2433.5,2432.9,9.59068]
[1750957503425,0.2048,2433.3,2432.9,9.59068]
[1750957503859,0.2048,2433.3,2432.9,1.06768]
[1750957504030,0.7505,2433.2,2433.0,4.7]
[1750957504227,0.7505,2433.2,2433.1,4.7]
[1750957504427,0.8014,2433.6,2433.1,5.4979]
[1750957504628,0.2048,2433.5,2433.1,5.4979]
[1750957504834,0.2048,2433.5,2433.2,1.24647]
[1750957505428,0.2048,2433.5,2433.3,6.764]
[1750957505650,0.2058,2433.7,2433.4,1.771]
[1750957505837,0.2058,2433.7,2433.5,4.7]
[1750957506167,0.2058,2433.7,2433.5,5.5173]
[1750957506466,0.2058,2433.7,2433.6,6.764]
[1750957506628,0.001,2433.7,2433.6,11.464]
[1750957509465,0.001,2433.7,2433.6,11.6688]
[1750957509875,0.2058,2434.1,2433.8,4.699]
[1750957510047,0.2058,2434.1,2433.9,1.771]
[1750957510249,0.001,2434.1,2434.0,4.699]
[1750957510468,0.001,2434.1,2434.0,5.4943]
[1750957510770,0.001,2434.1,2434.0,12.2533]
[1750957512282,0.001,2434.1,2434.0,5.6991]
[1750957512768,0.001,2434.1,2434.0,14.2291]
[1750957513077,0.001,2434.1,2434.0,15.09525475]
[1750957514367,0.001,2434.1,2434.0,14.89045475]
[1750957514575,0.001,2434.1,2434.0,13.229]
[1750957515656,0.2058,2434.4,2434.1,4.698]
[1750957516389,0.2058,2434.4,2434.2,1.771]
[1750957516749,0.2058,2434.4,2434.1,4.698]
[1750957516949,0.2058,2434.4,2434.2,1.771]
[1750957519274,0.2058,2434.4,2434.2,3.094]
[1750957520404,0.789,2434.3,2434.1,11.454]
[1750957520575,0.789,2434.3,2434.2,1.771]
[1750957520972,0.2048,2434.2,2434.1,4.698]
[1750957521301,0.2048,2434.2,2434.1,6.469]
[1750957522808,0.2048,2434.2,2434.1,13.225]
[1750957523474,0.2048,2434.2,2434.1,13.222]
[1750957523973,0.2048,2434.2,2434.1,4.698]
[1750957524376,0.2048,2434.2,2434.1,13.216]
[1750957525381,0.001,2434.4,2434.3,4.65795711]
[1750957525586,0.001,2434.4,2434.3,22.23055711]
[1750957526478,0.001,2434.4,2434.3,22.61055338]
[1750957528298,0.001,2434.4,2434.3,19.72159627]
[1750957528512,0.001,2434.4,2434.3,23.82955338]
[1750957528777,0.001,2434.4,2434.3,25.84755813]
[1750957528976,0.001,2434.4,2434.3,21.73960102]
[1750957529177,0.001,2434.4,2434.3,3.21960102]
[1750957529477,0.001,2434.4,2434.3,8.522]
[1750957529701,0.001,2434.4,2434.0,0.813]
[1750957529702,0.001,2434.4,2434.2,6.756]
[1750957530207,0.001,2434.4,2434.3,0.37984929]
[1750957530375,0.001,2434.4,2434.3,1.19284929]
[1750957531009,0.001,2434.4,2434.3,5.3008064]
[1750957531181,0.001,2434.4,2434.3,7.64391368]
[1750957531594,0.001,2434.4,2434.3,3.53595657]
[1750957532926,0.001,2434.4,2434.3,7.64391368]
[1750957533506,0.001,2434.4,2434.3,7.58291368]
[1750957535560,0.001,2434.4,2434.3,7.78771368]
[1750957535906,0.001,2434.4,2434.3,3.75595657]
[1750957536140,0.001,2434.4,2434.3,9.96295657]
[1750957536516,0.001,2434.4,2434.3,14.07091368]
[1750957536715,0.001,2434.4,2434.3,14.62091368]
[1750957537254,0.001,2434.4,2434.3,24.62091368]
[1750957537455,0.001,2434.4,2434.3,54.62091368]
[1750957537749,0.001,2434.4,2434.3,55.75030205]
[1750957537951,0.001,2434.7,2434.6,35.91862091]
[1750957538152,0.001,2434.7,2434.6,58.13841767]
[1750957538446,0.001,2434.7,2434.6,41.82371967]
[1750957538823,0.001,2434.7,2434.6,33.73419676]
[1750957539344,0.001,2434.7,2434.6,37.84164767]
[1750957541654,0.001,2434.7,2434.6,32.42759676]
[1750957542552,0.001,2434.7,2434.6,32.43059676]
[1750957542714,0.001,2434.7,2434.6,19.38264929]
[1750957542920,0.001,2434.7,2434.6,10.64284929]
[1750957543237,0.001,2434.7,2434.6,12.40926126]
[1750957543440,0.001,2434.7,2434.6,10.64326126]
[1750957543640,0.8315,2434.7,2434.4,8.54]
[1750957543954,0.8315,2434.7,2433.8,0.7658]
[1750957544257,0.2048,2434.5,2434.0,10.2048]
[1750957544419,0.2048,2434.5,2434.1,6.775]
[1750957544623,0.7987,2434.4,2434.1,6.774]
[1750957544954,0.7987,2434.2,2433.3,0.7548]
[1750957545127,0.7987,2434.2,2433.2,1.766]
[1750957545333,0.7987,2433.7,2433.3,6.9848]
[1750957545950,0.7987,2434.0,2433.3,6.78]
[1750957546154,0.7987,2434.0,2433.2,1.766]
[1750957546155,0.2048,2433.9,2433.5,0.2048]
[1750957546328,0.2048,2433.9,2433.6,6.779]
[1750957547060,4.10822475,2434.2,2433.1,0.002]
[1750957547225,10.767,2434.4,2433.3,0.2048]
[1750957547226,0.767,2433.6,2433.3,0.2048]
[1750957549360,0.767,2433.6,2433.2,1.766]
[1750957549555,0.2048,2433.4,2433.2,1.766]
[1750957553454,0.2048,2433.4,2433.1,0.002]
[1750957553455,0.7816,2433.3,2433.1,0.002]
[1750957554365,0.7816,2433.3,2433.2,4.7]
[1750957554540,1.85976,2433.3,2433.2,4.7]
[1750957554735,1.84706,2433.3,2433.2,4.7]
[1750957556663,11.84706,2433.3,2433.2,4.7]
[1750957556962,0.7689,2433.3,2433.2,4.7]
[1750957560604,0.7689,2433.3,2433.1,0.002]
[1750957560892,0.2048,2433.2,2433.1,0.002]
[1750957563320,0.7732,2433.4,2433.1,0.2068]
[1750957563535,14.88301423,2433.2,2433.1,0.002]
[1750957563688,24.36505139,2433.2,2433.1,0.002]
[1750957564086,17.57605139,2433.2,2433.1,0.002]
[1750957564292,26.14905139,2433.2,2433.1,0.002]
[1750957564894,26.69905139,2433.2,2433.1,0.002]
[1750957565102,26.69905139,2433.2,2431.9,4.7]
[1750957565103,10.7732,2432.6,2431.9,4.7]
[1750957565302,6.789,2432.5,2431.9,4.7]
[1750957565691,0.7732,2432.4,2431.9,4.7]
[1750957566596,7.5642,2432.4,2431.9,4.7]
[1750957568994,7.5642,2432.4,2432.3,4.702]
[1750957569197,1.70782,2432.4,2432.3,4.702]
[1750957569527,0.7729,2432.7,2432.3,4.702]
[1750957573436,0.2048,2432.5,2432.3,4.702]
[1750957574904,0.2048,2432.5,2432.4,4.7]
[1750957575425,0.8118,2433.0,2432.4,4.7]
[1750957575619,0.2048,2432.7,2432.5,0.7577]
[1750957577831,0.78,2433.3,2432.6,6.483]
[1750957578037,0.2048,2432.9,2432.7,4.7]
[1750957583354,0.799,2433.5,2432.9,0.7941]
[1750957583567,0.2048,2433.3,2432.9,0.7941]
[1750957583861,0.2048,2433.3,2433.0,5.18289]
[1750957584048,0.7943,2433.3,2433.1,1.782]
[1750957584224,0.7943,2433.3,2433.2,4.7]
[1750957585760,4.90394533,2433.3,2433.2,4.7]
[1750957585973,0.7943,2433.0,2432.5,4.7]
[1750957586152,0.7943,2433.0,2432.6,4.7]
[1750957588332,1.77434459,2433.0,2432.6,4.7]
[1750957588536,0.7943,2433.0,2432.6,4.7]
[1750957588770,0.8306,2432.9,2432.6,4.7]
[1750957589536,1.80944459,2433.1,2432.6,4.7]
[1750957589757,10.98004459,2433.2,2432.7,1.786]
[1750957589963,0.2048,2432.9,2432.7,1.786]
[1750957590368,1.80944459,2433.5,2432.8,0.794]
[1750957590572,0.2048,2433.2,2432.9,4.7]
[1750957590874,6.796,2433.8,2432.9,12.52]
[1750957590875,0.98004459,2433.7,2432.9,12.52]
[1750957591186,0.2048,2433.4,2433.1,0.794]
[1750957591476,0.2048,2433.4,2433.2,1.786]
[1750957591791,0.2048,2433.7,2433.2,1.9908]
[1750957591934,0.2048,2433.7,2433.2,3.82998628]
[1750957592133,0.2048,2433.7,2433.2,1.9908]
[1750957592775,1.80944459,2433.8,2433.1,0.794]
[1750957593072,0.2048,2433.3,2433.1,1.786]
[1750957593972,0.8294,2433.2,2433.1,6.486]
[1750957594467,0.7914,2433.7,2433.1,7.2577]
[1750957594666,0.2048,2433.4,2433.1,7.2577]
[1750957594877,0.2048,2433.4,2433.2,1.786]
[1750957595040,0.7914,2433.9,2433.3,4.7]
[1750957595244,0.2048,2433.6,2433.4,4.7]
[1750957598676,0.2048,2433.6,2433.5,4.7]
[1750957598854,0.8318,2433.8,2433.5,4.7]
[1750957602772,0.7663,2433.7,2433.5,4.7]
[1750957602975,1.84293,2433.6,2433.5,4.7]
[1750957603276,1.84293,2433.6,2433.2,4.7]
[1750957603277,0.7663,2433.5,2433.2,4.7]
[1750957603592,0.828,2433.4,2433.3,4.7]
[1750957604081,15.91752104,2433.4,2433.3,4.7]
[1750957604680,11.80804459,2433.4,2433.3,4.7]
[1750957604881,13.09651205,2433.4,2433.3,4.7]
[1750957606275,12.26851205,2433.4,2433.3,4.7]
[1750957606449,11.28846746,2433.4,2433.3,4.7]
[1750957606850,12.26851205,2433.4,2433.3,4.7]
[1750957607278,11.28846746,2433.4,2433.3,4.7]
[1750957607525,10.2048,2433.3,2432.8,4.7]
[1750957607667,3.2273758,2433.3,2432.8,6.485]
[1750957607849,0.2048,2433.0,2432.8,6.485]
[1750957608178,0.2048,2433.0,2432.9,4.7]
[1750957608383,10.98004459,2433.5,2432.9,4.7]
[1750957608589,0.2048,2433.2,2433.0,4.7]
[1750957613582,0.2048,2433.2,2433.1,4.7]
[1750957615570,0.98004459,2433.5,2433.1,5.9583]
[1750957615779,0.2048,2433.3,2433.1,5.4883]
[1750957616093,0.8204,2433.2,2432.9,4.7]
[1750957616998,14.93037639,2433.2,2432.5,4.7]
[1750957617158,12.00230088,2433.1,2432.5,4.7]
[1750957617508,17.09544517,2433.1,2432.5,4.7]
[1750957617717,16.11236602,2433.1,2432.5,4.7]
[1750957618018,0.98308471,2433.0,2432.5,4.7]
[1750957618179,0.98308471,2433.0,2432.6,4.7]
[1750957619595,10.7809,2433.4,2432.7,0.7801]
[1750957619779,2.061187,2433.3,2432.7,0.7801]
[1750957620622,2.061187,2433.3,2432.6,4.7]
[1750957620623,10.0,2433.2,2432.6,4.7]
[1750957620784,10.983097,2433.2,2432.6,4.7]
[1750957621816,0.7809,2433.1,2432.6,4.7]
[1750957621981,1.58738514,2433.0,2432.6,4.7]
[1750957622183,1.58738514,2433.0,2432.7,4.7]
[1750957625042,5.69757446,2433.0,2432.7,4.7]
[1750957625536,4.11033093,2432.9,2432.7,4.7]
[1750957625740,0.7844,2432.8,2432.7,4.7]
[1750957625927,0.7844,2432.8,2432.4,4.7]
[1750957625928,1.02157851,2432.8,2432.4,4.7]
[1750957626134,4.11073136,2432.7,2432.4,4.7]
[1750957626645,2.00467551,2432.8,2432.4,4.7]
[1750957626846,1.02157851,2432.8,2432.4,4.7]
[1750957628870,5.13207377,2432.8,2432.4,4.7]
[1750957629018,1.92424545,2432.7,2432.4,4.7]
[1750957631149,1.92424545,2432.7,2432.5,4.7]
[1750957632748,23.80421049,2432.7,2432.6,4.7]
[1750957633044,22.69976504,2432.7,2432.6,4.7]
[1750957636841,18.58910357,2432.7,2432.6,4.7]
[1750957637025,0.2048,2432.6,2432.4,4.7]
[1750957637230,10.0,2432.5,2432.4,4.7]
[1750957637426,0.2048,2432.4,2432.3,0.002]
[1750957637652,21.09396592,2432.4,2432.3,0.002]
[1750957637831,16.9828,2432.4,2432.3,0.002]
[1750957640319,29.61268764,2432.4,2432.3,0.002]
[1750957640552,34.69899083,2432.4,2432.3,0.002]
[1750957640851,15.47590398,2432.2,2432.1,0.002]
[1750957641042,23.23133128,2432.2,2432.1,0.002]
[1750957641636,23.43985379,2432.2,2432.1,0.002]
[1750957646960,17.53735754,2431.9,2431.7,0.002]
[1750957647162,28.51978484,2431.9,2431.7,0.002]
[1750957647359,35.29978484,2431.9,2431.7,0.002]
[1750957647676,35.30078484,2431.9,2431.7,0.002]
[1750957647859,28.51978484,2431.9,2431.7,0.002]
[1750957648057,15.06083118,2431.9,2431.7,0.002]
[1750957648245,10.9824273,2431.9,2431.7,0.002]
[1750957648555,16.781,2431.9,2431.7,0.002]
[1750957648761,17.7634273,2431.9,2431.7,0.002]
[1750957649459,21.87543848,2431.9,2431.7,0.002]
[1750957649664,17.7634273,2431.9,2431.7,0.002]
[1750957649872,20.36213613,2431.9,2431.7,0.002]
[1750957650032,13.58113613,2431.9,2431.7,0.002]
[1750957650233,20.36213613,2431.9,2431.7,0.002]
[1750957650436,10.0,2431.9,2431.8,5.503]
[1750957650768,10.0,2431.9,2431.8,4.702]
[1750957651269,6.782,2432.0,2431.8,4.702]
[1750957651440,10.0,2431.9,2431.8,4.702]
[1750957651640,11.6782,2431.9,2431.8,4.702]
[1750957651837,3.72190319,2432.4,2431.9,0.7995]
[1750957652052,6.786,2432.3,2432.0,4.7]
[1750957652261,16.786,2432.2,2432.0,4.7]
[1750957652748,6.787,2432.1,2432.0,4.7]
[1750957652950,6.786,2432.1,2432.0,4.7]
[1750957653348,0.98002524,2432.6,2432.0,5.493]
[1750957653558,0.98002524,2432.9,2432.2,0.793]
[1750957653874,0.2048,2432.4,2432.3,5.4894]
[1750957655855,0.2048,2432.4,2432.3,0.7894]
[1750957656765,0.2048,2432.4,2432.3,2.5684]
[1750957657704,0.2048,2432.4,2432.3,0.7894]
[1750957658178,0.2048,2432.4,2432.3,2.5684]
[1750957658775,0.2048,2432.4,2432.1,0.8222]
[1750957658979,0.7751,2432.7,2431.9,0.8222]
[1750957659186,0.2048,2432.0,2431.9,0.8222]
[1750957659572,0.2048,2432.0,2431.8,0.002]
[1750957659782,5.09223692,2432.4,2431.8,0.002]
[1750957659783,4.11118967,2432.4,2431.8,0.002]
[1750957660160,5.09241081,2432.4,2431.8,0.002]
[1750957660683,5.09241081,2432.4,2430.2,0.002]
[1750957660684,4.11416714,2430.7,2430.2,0.002]
[1750957660885,10.0,2430.3,2430.2,0.002]
[1750957661074,12.18622332,2430.3,2430.2,0.002]
[1750957661259,12.43805697,2430.3,2430.2,0.002]
[1750957661465,21.97518521,2430.3,2430.2,0.002]
[1750957661855,20.99371834,2430.3,2430.2,0.002]
[1750957662282,14.11505699,2430.1,2429.6,0.002]
[1750957662447,15.096571,2430.1,2429.6,0.002]
[1750957662650,16.59279432,2430.1,2429.6,0.002]
[1750957662878,20.60611856,2430.1,2429.6,0.002]
[1750957663284,14.1152496,2430.0,2429.6,0.002]
[1750957663454,22.08634636,2429.7,2429.6,0.002]
[1750957665006,6.88,2429.7,2429.6,0.002]
[1750957665203,4.01332424,2430.1,2429.6,0.002]
[1750957665406,6.877,2430.0,2429.6,0.002]
[1750957665584,0.2056,2429.7,2429.6,0.8049]
[1750957669322,1.78,2430.2,2429.6,0.8049]
[1750957669323,6.871,2430.0,2429.6,0.8049]
[1750957669617,0.2056,2429.9,2429.6,0.8049]
[1750957675799,10.0,2430.2,2429.6,0.8049]
[1750957675988,0.2056,2429.7,2429.6,0.8049]
[1750957678018,0.2056,2429.7,2429.6,0.002]
[1750957681715,0.2056,2429.7,2429.6,0.8051]
[1750957684195,6.858,2430.5,2429.6,0.8051]
[1750957684408,0.2056,2430.0,2429.6,0.8051]
[1750957688735,0.97423603,2430.4,2429.7,4.87785093]
[1750957688940,0.97423603,2430.3,2429.7,0.7622]
[1750957689103,0.97423603,2430.2,2429.7,0.7622]
[1750957689310,0.97423603,2430.1,2429.7,0.7622]
[1750957689505,10.0,2430.5,2429.7,0.7622]
[1750957689840,2.39244736,2430.4,2429.7,0.7622]
[1750957690136,11.79551748,2430.3,2429.6,0.002]
[1750957690342,10.98101748,2430.2,2429.6,0.002]
[1750957690639,0.8145,2430.3,2429.6,0.002]
[1750957690640,0.98101748,2430.1,2429.6,0.002]
[1750957690819,0.98101748,2430.0,2429.6,0.002]
[1750957691022,0.98101748,2429.9,2429.6,0.002]
[1750957691345,0.98101748,2429.8,2429.6,0.002]
[1750957691528,0.98101748,2429.7,2429.6,0.002]
[1750957697146,0.98101748,2429.7,2429.6,0.811]
[1750957697652,0.98101748,2429.7,2429.6,1.0747]
[1750957698522,10.0,2430.3,2429.6,1.0747]
[1750957698849,0.2056,2429.9,2429.6,0.811]
[1750957699053,0.98600663,2429.8,2429.6,0.811]
[1750957699344,0.2056,2429.9,2429.6,0.811]
[1750957699646,0.98596901,2429.8,2429.6,0.811]
[1750957699942,0.2056,2429.9,2429.6,0.811]
[1750957700144,0.98596621,2429.8,2429.6,0.811]
[1750957700346,0.2056,2429.9,2429.6,0.811]
[1750957700511,0.98591116,2429.8,2429.6,0.811]
[1750957700716,0.2056,2429.9,2429.6,0.811]
[1750957700916,0.98590854,2429.8,2429.6,0.811]
[1750957701115,0.2056,2429.9,2429.6,0.811]
[1750957701327,0.98588915,2429.8,2429.6,0.811]
[1750957701525,0.2056,2429.9,2429.6,0.811]
[1750957701731,0.9858891,2429.8,2429.6,0.811]
[1750957701933,0.2056,2429.9,2429.6,0.811]
[1750957702131,0.9858891,2429.8,2429.6,0.811]
[1750957702338,0.2056,2429.9,2429.6,0.811]
[1750957702543,0.98585088,2429.8,2429.6,0.811]
[1750957702756,0.2056,2429.9,2429.6,0.811]
[1750957703053,0.98584734,2429.8,2429.6,0.811]
[1750957703255,0.2056,2429.9,2429.6,0.811]
[1750957703437,0.98581421,2429.8,2429.6,0.811]
[1750957703737,0.2056,2429.9,2429.6,0.811]
[1750957703941,0.9858449,2429.8,2429.6,0.811]
[1750957704147,1.1914449,2429.7,2429.6,0.811]
[1750957705222,1.1914449,2429.7,2429.6,0.002]
[1750957707319,3.07378939,2429.7,2429.6,0.002]
[1750957709838,3.07378939,2429.7,2429.0,1.826]
[1750957710032,0.9858449,2429.6,2429.0,1.826]
[1750957710251,0.2056,2429.2,2429.0,1.826]
[1750957712034,0.98556103,2429.6,2429.1,0.7893]
[1750957712354,0.2056,2429.8,2429.4,0.7893]
[1750957712550,0.98532403,2429.7,2429.5,2.0206]
[1750957712857,0.98532403,2429.6,2429.5,2.0206]
[1750957714161,0.98532403,2429.7,2429.5,2.0206]
[1750957714348,0.2056,2429.8,2429.5,2.0206]
[1750957714550,0.98528541,2429.7,2429.5,2.0206]
[1750957714749,0.2056,2429.8,2429.5,2.0206]
[1750957714929,0.98528538,2429.7,2429.5,2.0206]
[1750957715124,0.2056,2429.8,2429.5,2.0206]
[1750957715334,0.98529701,2429.7,2429.5,2.0206]
[1750957715540,0.2056,2429.8,2429.5,2.0206]
[1750957715857,0.98529697,2429.7,2429.5,2.0206]
[1750957716062,0.2056,2429.8,2429.5,2.0206]
[1750957716261,0.98529806,2429.7,2429.5,2.0206]
[1750957716431,0.2056,2429.8,2429.5,2.0206]
[1750957716632,0.98529817,2429.7,2429.5,2.0206]
[1750957716831,0.2056,2429.8,2429.5,2.0206]
[1750957717031,0.98529806,2429.7,2429.5,2.0206]
[1750957717261,0.2056,2429.8,2429.5,2.0206]
[1750957717460,0.98530234,2429.7,2429.5,2.0206]
[1750957717641,0.2056,2429.8,2429.5,2.0206]
[1750957717841,0.98530234,2429.7,2429.5,2.0206]
[1750957718141,0.2056,2429.8,2429.5,2.0206]
[1750957719333,0.2056,2429.6,2429.5,1.815]
[1750957719779,0.2056,2429.6,2429.5,6.515]
[1750957720297,1.19106734,2429.6,2429.5,6.515]
[1750957720767,1.19106734,2429.6,2429.5,4.7]
[1750957722064,1.94786734,2429.6,2429.5,4.7]
[1750957722266,2.55422601,2429.6,2429.5,4.7]
[1750957722433,1.94786734,2429.6,2429.5,4.7]
[1750957722784,1.94786734,2429.6,2429.1,4.7]
[1750957722942,0.98546734,2429.5,2429.1,4.7]
[1750957723142,0.2056,2429.2,2429.1,4.7]
[1750957724272,0.9876,2429.2,2429.1,4.7]
[1750957725281,5.10429219,2429.2,2428.6,0.002]
[1750957725479,12.49539141,2429.1,2428.6,0.002]
[1750957725779,0.98496219,2429.0,2428.6,0.002]
[1750957725945,11.51042922,2429.1,2428.6,0.002]
[1750957726148,4.11742907,2428.7,2428.6,0.002]
[1750957726448,15.43822907,2428.7,2428.6,0.002]
[1750957726661,26.71907317,2428.7,2428.6,0.002]
[1750957727185,27.7038932,2428.7,2428.6,0.002]
[1750957727980,28.2538932,2428.7,2428.6,0.002]
[1750957728360,4.11838218,2428.2,2427.7,0.002]
[1750957728552,6.847,2428.2,2427.7,0.002]
[1750957728746,1.09651933,2428.1,2427.7,0.002]
[1750957732508,10.98043346,2428.3,2427.7,0.002]
[1750957732796,6.843,2428.3,2427.7,0.002]
[1750957733230,0.7708,2428.4,2427.7,0.002]
[1750957733231,10.97982448,2428.6,2427.9,4.11865094]
[1750957733374,0.97967791,2429.0,2428.1,0.8068]
[1750957733718,10.97967791,2429.3,2428.3,0.8177]
[1750957733920,0.97967791,2429.3,2428.3,0.8177]
[1750957734071,1.18096779,2429.2,2428.3,1.51902331]
[1750957734272,0.97967791,2429.3,2428.3,3.01422302]
[1750957734507,0.97967791,2429.3,2428.3,1.51902331]
[1750957735312,0.2056,2428.7,2428.3,1.51902331]
[1750957735911,0.806,2429.0,2428.2,4.7]
[1750957736214,0.2056,2428.5,2428.2,4.7]
[1750957736518,0.2056,2428.5,2428.1,2.6337]
[1750957738980,7.83467791,2429.1,2428.3,0.7963]
[1750957738981,7.83267791,2429.1,2428.3,0.7963]
[1750957739190,0.7548,2429.3,2428.3,0.7963]
[1750957739191,0.2056,2428.8,2428.4,4.9056]
[1750957740013,0.2056,2428.5,2428.4,4.7]
[1750957743086,0.2056,2428.5,2428.4,4.65]
[1750957744222,0.2056,2428.5,2428.4,5.4037]
[1750957744423,0.2056,2428.5,2428.4,4.65]
[1750957749724,0.2056,2428.6,2428.5,0.8246]
[1750957753654,0.2056,2428.8,2428.5,1.37206]
[1750957753958,0.2056,2428.8,2428.6,1.821]
[1750957754509,0.2056,2428.8,2428.7,4.65]
[1750957754709,0.2056,2428.9,2428.7,4.65]
[1750957754945,0.97929451,2429.3,2428.7,4.65]
[1750957755242,0.2056,2428.8,2428.7,4.65]
[1750957759377,0.7656,2429.4,2428.7,4.65]
[1750957759378,0.98360775,2429.3,2428.7,5.37956]
[1750957759550,0.2056,2428.9,2428.8,5.4256]
[1750957763864,0.2056,2428.9,2428.8,4.65]
[1750957764069,0.001,2429.6,2428.8,4.65]
[1750957764070,0.98359542,2429.1,2428.8,4.65]
[1750957764253,0.8239,2429.4,2428.8,5.4551]
[1750957764576,0.98359542,2429.3,2428.8,5.4551]
[1750957764883,0.98359542,2429.2,2428.8,5.4551]
[1750957765070,0.98359542,2429.1,2428.8,5.4551]
[1750957765391,0.8239,2429.4,2428.8,5.4551]
[1750957765600,0.98349978,2429.3,2428.8,5.4551]
[1750957765773,0.98349978,2429.2,2428.8,5.4551]
[1750957765974,0.98349978,2429.1,2428.8,5.4551]
[1750957766177,0.8239,2429.4,2428.8,5.4551]
[1750957766376,0.98359076,2429.3,2428.8,5.4551]
[1750957766684,0.98359076,2429.2,2428.8,5.4551]
[1750957766860,0.98359076,2429.1,2428.8,5.4551]
[1750957767063,0.8239,2429.4,2428.8,5.4551]
[1750957767273,0.98358999,2429.3,2428.8,5.4551]
[1750957767474,0.98358999,2429.2,2428.8,5.4551]
[1750957767674,0.98358999,2429.1,2428.8,5.4551]
[1750957767875,0.8239,2429.4,2428.8,5.4551]
[1750957768090,0.7791,2429.1,2428.8,4.65]
[1750957768273,0.98370924,2429.0,2428.8,4.65]
[1750957768467,0.7791,2429.1,2428.8,4.65]
[1750957768667,2.06178164,2429.0,2428.8,4.65]
[1750957768997,1.07791,2429.0,2428.8,4.65]
[1750957770610,0.98397389,2428.9,2428.8,4.65]
[1750957773092,0.98397389,2428.9,2428.5,1.821]
[1750957773292,0.98397389,2428.8,2428.5,1.821]
[1750957773600,0.98397389,2428.7,2428.5,1.821]
[1750957773796,0.7791,2429.1,2428.5,1.821]
[1750957774123,11.48957729,2429.0,2428.5,1.821]
[1750957774424,0.98450426,2428.9,2428.5,1.821]
[1750957774621,0.98450426,2428.8,2428.5,1.821]
[1750957774824,0.98450426,2428.7,2428.5,1.821]
[1750957775023,0.98450426,2428.6,2428.5,1.821]
[1750957775419,0.98450426,2428.8,2428.5,1.821]
[1750957775720,0.98450426,2428.7,2428.5,1.821]
[1750957775930,1.22686773,2428.9,2428.5,1.821]
[1750957776138,0.98484351,2428.8,2428.5,1.821]
[1750957776304,0.98484351,2428.7,2428.5,1.821]
[1750957776623,3.22486066,2429.3,2428.6,0.792]
[1750957776926,2.32452645,2429.2,2428.7,4.65]
[1750957777227,0.98486832,2429.1,2428.7,4.65]
[1750957777390,0.98486832,2429.0,2428.7,4.65]
[1750957777586,0.98486832,2428.9,2428.7,4.65]
[1750957777792,0.98486832,2428.8,2428.7,4.65]
[1750957788049,0.2056,2428.7,2428.5,4.65]
[1750957788256,10.7655,2429.1,2428.5,4.65]
[1750957788447,2.87555633,2429.0,2428.5,4.65]
[1750957788753,0.98474052,2428.9,2428.5,4.65]
[1750957788956,0.98474052,2428.8,2428.5,4.65]
[1750957789260,0.98474052,2428.7,2428.5,4.65]
[1750957789455,1.89081581,2429.0,2428.5,4.65]
[1750957789637,2.25041885,2428.9,2428.5,4.65]
[1750957789838,0.98478727,2428.8,2428.5,4.65]
[1750957790050,0.98478727,2428.7,2428.5,4.65]
[1750957790234,1.26563158,2428.9,2428.5,4.65]
[1750957790434,0.98489176,2428.8,2428.5,4.65]
[1750957790746,0.98489176,2428.7,2428.5,4.65]
[1750957791060,1.89081581,2429.0,2428.5,4.65]
[1750957791264,2.93032369,2428.9,2428.5,4.65]
[1750957791554,0.98489211,2428.8,2428.6,0.7711]
[1750957791858,0.2056,2428.8,2428.6,0.7711]
[1750957793720,0.2056,2428.8,2428.7,4.65]
[1750957793950,1.19093543,2428.8,2428.7,4.65]
[1750957796864,0.2056,2428.8,2428.7,4.65]
[1750957799767,0.2056,2428.8,2428.6,0.7711]
[1750957800878,0.7878,2428.9,2428.4,0.8147]
[1750957801078,0.2056,2428.6,2428.5,1.785]
[1750957801263,10.0,2429.1,2428.5,2.5997]
[1750957801472,0.2056,2428.9,2428.6,0.8147]
[1750957801677,2.46226066,2429.6,2429.0,0.8147]
[1750957801844,1.19091306,2429.5,2429.1,1.785]
[1750957802043,0.98531306,2429.4,2429.1,1.785]
[1750957802267,0.98531306,2429.3,2429.1,1.785]
[1750957802543,0.001,2429.6,2429.1,1.785]
[1750957802850,0.2056,2429.3,2429.1,1.785]
[1750957803081,0.98504508,2429.2,2429.1,1.785]
[1750957804670,0.2056,2429.3,2429.1,1.785]
[1750957805198,0.98447288,2429.2,2429.1,1.785]
[1750957805805,0.2056,2429.3,2429.1,1.785]
[1750957810284,0.8042,2429.4,2429.1,1.785]
[1750957810470,0.2056,2429.1,2428.7,1.785]
[1750957810669,0.2056,2428.9,2428.7,1.785]
[1750957818394,0.7936,2429.0,2428.7,1.785]